bitfinex-derivatives/quotes_BTCF0:USTF0_20250108
["timestamp","ask_amount","ask_price","bid_price","bid_amount"]
[1736364153137,0.052833,94660.0,94657.0,0.052835]
[1736364153336,0.052834,94659.0,94657.0,0.052835]
[1736364153637,0.156359,94663.0,94652.0,0.3608]
[1736364153834,0.052842,94645.0,94643.0,1.5]
[1736364154035,0.052842,94645.0,94641.0,0.052843]
[1736364154036,0.009,94644.0,94641.0,0.052843]
[1736364154233,0.009,94644.0,94635.0,0.3608]
[1736364154438,0.052845,94640.0,94639.0,0.37201941]
[1736364154839,0.003,94644.0,94639.0,0.37201941]
[1736364155039,0.009,94659.0,94639.0,0.37201941]
[1736364155040,0.009,94659.0,94658.0,0.052834]
[1736364155243,0.052824,94678.0,94673.0,0.052826]
[1736364155536,0.156359,94675.0,94674.0,0.052826]
[1736364156037,0.156359,94675.0,94674.0,1.552826]
[1736364156336,0.156359,94675.0,94674.0,1.5]
[1736364156536,0.156359,94675.0,94670.0,0.7216]
[1736364156938,0.052827,94672.0,94670.0,0.7216]
[1736364158540,0.052827,94672.0,94670.0,0.7236]
[1736364159139,0.053827,94672.0,94670.0,0.7306]
[1736364159342,0.053827,94672.0,94670.0,0.7286]
[1736364160445,0.001,94672.0,94670.0,0.7286]
[1736364160646,0.12608821,94677.0,94676.0,0.052824]
[1736364161141,0.052824,94676.0,94670.0,0.776027]
[1736364161335,0.052824,94676.0,94670.0,0.778427]
[1736364161535,0.052824,94676.0,94671.0,0.052827]
[1736364161737,0.052824,94676.0,94670.0,0.7216]
[1736364162136,0.052827,94672.0,94670.0,0.7216]
[1736364162536,0.052827,94672.0,94670.0,0.7246]
[1736364163748,0.052827,94672.0,94670.0,0.3638]
[1736364163947,0.052833,94661.0,94660.0,0.3608]
[1736364164934,0.052837,94653.0,94651.0,0.00158472]
[1736364166046,0.052843,94643.0,94607.0,0.3608]
[1736364166244,0.3608,94641.0,94623.0,0.37182421]
[1736364166439,0.3608,94641.0,94624.0,1.5]
[1736364166648,0.3608,94645.0,94624.0,1.5]
[1736364166949,0.05285,94630.0,94624.0,0.052853]
[1736364167133,0.05285,94630.0,94625.0,0.052853]
[1736364167535,0.052847,94636.0,94624.0,0.003]
[1736364167839,0.3608,94637.0,94635.0,0.052847]
[1736364168146,0.001,94630.0,94627.0,0.16052077]
[1736364168348,0.001,94630.0,94628.0,0.052851]
[1736364168747,0.001,94636.0,94626.0,0.052852]
[1736364168949,0.001,94636.0,94635.0,0.052847]
[1736364169650,0.001,94636.0,94635.0,1.552847]
[1736364170241,0.052845,94639.0,94635.0,1.5]
[1736364170445,0.3608,94645.0,94635.0,1.5]
[1736364170650,0.052849,94633.0,94631.0,0.42510186]
[1736364171947,0.052849,94632.0,94631.0,0.37425286]
[1736364172547,0.052849,94632.0,94631.0,0.42510286]
[1736364172748,0.052849,94632.0,94631.0,0.42610286]
[1736364173343,0.12608821,94639.0,94634.0,0.052847]
[1736364173539,0.052847,94635.0,94634.0,0.052847]
[1736364173941,0.156359,94638.0,94637.0,0.052846]
[1736364174246,0.17148738,94645.0,94637.0,0.052846]
[1736364174443,0.052832,94663.0,94657.0,0.052835]
[1736364174644,0.3608,94665.0,94643.0,0.3608]
[1736364174947,0.052833,94660.0,94644.0,0.052842]
[1736364175148,0.3608,94665.0,94657.0,0.052835]
[1736364175341,0.052828,94670.0,94657.0,0.052835]
[1736364175543,0.3608,94667.0,94665.0,0.05283]
[1736364175851,0.3608,94667.0,94666.0,0.05283]
[1736364176350,0.052826,94673.0,94672.0,0.052827]
[1736364177739,0.057826,94673.0,94672.0,0.052827]
[1736364178750,0.005,94673.0,94672.0,0.052827]
[1736364179253,0.008,94673.0,94672.0,0.052827]
[1736364180747,0.008,94673.0,94669.0,0.3608]
[1736364180748,0.052828,94670.0,94669.0,0.413628]
[1736364180937,0.052828,94670.0,94669.0,0.3608]
[1736364181144,0.052834,94659.0,94658.0,0.052834]
[1736364181347,0.052837,94654.0,94651.0,0.413638]
[1736364181547,0.57414877,94670.0,94651.0,0.3608]
[1736364181548,0.052838,94652.0,94651.0,0.3608]
[1736364182054,0.3608,94661.0,94651.0,0.3608]
[1736364182554,0.052833,94660.0,94651.0,0.3608]
[1736364182755,0.052837,94654.0,94651.0,0.3608]
[1736364182942,0.052837,94654.0,94652.0,0.052837]
[1736364183456,0.052837,94654.0,94653.0,0.052837]
[1736364183641,0.001,94654.0,94653.0,0.052837]
[1736364184253,0.3608,94679.0,94652.0,0.1884]
[1736364184447,0.3608,94679.0,94678.0,0.052823]
[1736364184645,0.1,94680.0,94678.0,0.413623]
[1736364185547,0.001,94679.0,94678.0,0.413623]
[1736364186141,0.001,94679.0,94678.0,0.39162299]
[1736364186953,0.1,94680.0,94678.0,0.37216006]
[1736364187150,0.004,94679.0,94678.0,0.37216006]
[1736364187753,0.012,94679.0,94678.0,0.37216006]
[1736364188348,0.005,94679.0,94678.0,0.37316006]
[1736364188550,0.07495914,94679.0,94678.0,0.37316006]
[1736364188952,0.07095914,94679.0,94678.0,0.37516006]
[1736364189148,0.06283,94680.0,94679.0,0.052823]
[1736364189551,0.06283,94680.0,94679.0,0.228623]
[1736364189853,0.1,94700.0,94679.0,0.228623]
[1736364189854,0.1,94700.0,94699.0,0.052812]
[1736364190067,0.1,94700.0,94699.0,0.413612]
[1736364190559,0.1,94700.0,94699.0,1.913612]
[1736364190956,0.08936406,94700.0,94699.0,1.913612]
[1736364191145,0.22009488,94712.0,94711.0,0.052805]
[1736364192160,0.3608,94726.0,94708.0,0.3608]
[1736364192353,0.052805,94712.0,94708.0,0.413606]
[1736364192549,0.1745,94718.0,94708.0,0.413606]
[1736364192751,0.052806,94710.0,94708.0,0.413606]
[1736364193651,0.052806,94710.0,94708.0,0.415606]
[1736364194163,0.052806,94710.0,94708.0,0.054806]
[1736364194360,0.008,94712.0,94701.0,0.05281]
[1736364194555,0.052806,94709.0,94708.0,0.001]
[1736364195058,0.413606,94709.0,94708.0,0.004]
[1736364195955,0.052806,94709.0,94708.0,0.004]
[1736364196264,0.052806,94709.0,94708.0,0.005]
[1736364196761,0.052806,94709.0,94708.0,0.002]
[1736364196959,0.052806,94709.0,94701.0,0.002]
[1736364197154,0.052806,94709.0,94698.0,0.052812]
[1736364197354,0.052806,94709.0,94708.0,0.001]
[1736364197857,0.052806,94709.0,94708.0,0.002]
[1736364198358,0.052806,94709.0,94708.0,0.003]
[1736364198564,0.413606,94709.0,94708.0,0.003]
[1736364199553,0.413606,94709.0,94708.0,0.002]
[1736364199754,0.052814,94695.0,94692.0,0.01099646]
[1736364199963,0.052814,94695.0,94691.0,0.052816]
[1736364200566,0.052814,94694.0,94691.0,0.052816]
[1736364201562,0.052815,94692.0,94691.0,0.052816]
[1736364202353,0.052815,94692.0,94691.0,0.06400004]
[1736364202553,0.052815,94692.0,94691.0,0.053816]
[1736364202970,0.713615,94692.0,94691.0,0.001]
[1736364203161,0.052822,94681.0,94663.0,0.0112573]
[1736364203472,0.3608,94673.0,94651.0,0.1716]
[1736364203766,0.052833,94661.0,94656.0,1.5]
[1736364203964,0.3608,94661.0,94655.0,0.18884788]
[1736364204164,0.3608,94661.0,94647.0,0.01086881]
[1736364204365,0.052841,94647.0,94646.0,0.36238481]
[1736364204869,0.052841,94647.0,94646.0,0.00158481]
[1736364205086,0.052835,94658.0,94657.0,0.052835]
[1736364205267,0.3618,94661.0,94660.0,0.052833]
[1736364205859,0.3618,94661.0,94655.0,0.052836]
[1736364205860,0.052834,94659.0,94655.0,0.052836]
[1736364206067,0.001,94661.0,94650.0,0.3608]
[1736364206270,0.001,94661.0,94660.0,0.052833]
[1736364206868,0.18901952,94663.0,94662.0,0.052832]
[1736364207057,0.18901952,94663.0,94662.0,1.552832]
[1736364207671,0.05283,94666.0,94665.0,0.052831]
[1736364207868,0.18901952,94671.0,94662.0,1.50064]
[1736364208072,0.18901952,94671.0,94660.0,0.01111782]
[1736364208261,0.05283,94668.0,94667.0,0.052829]
[1736364208457,0.052832,94663.0,94662.0,0.052832]
[1736364208864,0.052833,94661.0,94660.0,0.00064]
[1736364209067,0.052835,94657.0,94656.0,0.052835]
[1736364209260,0.052838,94652.0,94651.0,0.052838]
[1736364209868,0.1766,94656.0,94650.0,0.3608]
[1736364209869,0.052838,94651.0,94650.0,0.3608]
[1736364210172,0.052838,94651.0,94650.0,0.413639]
[1736364210372,0.052838,94651.0,94650.0,0.052839]
[1736364212271,0.3608,94659.0,94644.0,0.01090743]
[1736364212586,0.1723,94673.0,94666.0,0.05283]
[1736364212766,0.18901952,94674.0,94673.0,0.052826]
[1736364213775,0.00104001,94697.0,94673.0,0.052826]
[1736364213973,0.052809,94704.0,94703.0,0.052809]
[1736364214569,0.052808,94705.0,94692.0,0.3608]
[1736364214769,0.052809,94704.0,94703.0,0.052809]
[1736364214969,0.001,94697.0,94696.0,0.052813]
[1736364215874,0.002,94697.0,94696.0,1.552813]
[1736364216284,0.3608,94711.0,94696.0,1.5]
[1736364216466,0.3608,94711.0,94710.0,0.052805]
[1736364216666,0.1,94720.0,94719.0,0.0528]
[1736364217566,0.052804,94712.0,94703.0,0.3608]
[1736364217771,0.26052077,94720.0,94703.0,0.3608]
[1736364217972,0.16052077,94713.0,94704.0,0.052809]
[1736364218179,0.052801,94719.0,94704.0,0.052809]
[1736364218378,0.052808,94706.0,94703.0,0.3608]
[1736364218579,0.052808,94706.0,94705.0,0.052808]
[1736364219075,0.052809,94704.0,94703.0,0.3608]
[1736364219376,0.052808,94708.0,94707.0,0.052807]
[1736364219584,0.052808,94708.0,94703.0,0.3608]
[1736364219585,0.052809,94704.0,94703.0,0.001]
[1736364220177,0.052809,94704.0,94703.0,0.005]
[1736364222083,0.3608,94711.0,94703.0,0.004]
[1736364222383,0.052809,94704.0,94703.0,0.004]
[1736364222684,0.052809,94704.0,94703.0,0.053809]
[1736364223386,0.052806,94709.0,94703.0,0.003]
[1736364223574,0.052807,94707.0,94706.0,0.052808]
[1736364224175,0.47172316,94720.0,94703.0,0.004]
[1736364224375,0.47172316,94720.0,94703.0,0.001]
[1736364224676,0.47172316,94720.0,94706.0,0.052808]
[1736364224876,0.052809,94704.0,94703.0,0.002]
[1736364225782,0.052809,94704.0,94703.0,0.054809]
[1736364226284,0.052809,94704.0,94703.0,0.053809]
[1736364226686,0.052809,94704.0,94703.0,0.052809]
[1736364227473,0.052806,94709.0,94705.0,0.052808]
[1736364227678,0.3608,94712.0,94705.0,0.052808]
[1736364228186,0.052809,94704.0,94703.0,0.003]
[1736364228772,0.052809,94704.0,94703.0,0.055809]
[1736364229476,0.052809,94704.0,94703.0,0.056809]
[1736364229685,0.052809,94704.0,94703.0,0.001]
[1736364230183,0.1,94720.0,94719.0,0.0528]
[1736364230383,0.0002029,94720.0,94719.0,0.0528]
[1736364230977,0.0002029,94720.0,94719.0,1.5528]
[1736364232290,0.0002029,94720.0,94719.0,0.0528]
[1736364232783,0.0022029,94720.0,94719.0,1.5528]
[1736364232983,0.00061918,94720.0,94719.0,1.5528]
[1736364233181,0.00061918,94720.0,94719.0,1.56391478]
[1736364233481,0.4608,94740.0,94719.0,1.51111478]
[1736364233688,0.1,94740.0,94739.0,0.052789]
[1736364234290,0.152789,94740.0,94739.0,0.052789]
[1736364235088,0.05279,94738.0,94737.0,0.3608]
[1736364235283,0.05279,94738.0,94728.0,0.3608]
[1736364235482,0.052795,94729.0,94728.0,0.42462407]
[1736364236991,0.052792,94734.0,94733.0,0.052792]
[1736364237587,0.152789,94740.0,94728.0,0.37182907]
[1736364237786,0.152789,94740.0,94738.0,0.052789]
[1736364237987,0.152789,94740.0,94730.0,0.16052077]
[1736364238289,0.1,94740.0,94739.0,0.052789]
[1736364238992,0.1,94740.0,94739.0,1.552789]
[1736364240094,0.152789,94740.0,94739.0,0.06359545]
[1736364240288,0.152789,94740.0,94733.0,0.003]
[1736364240289,0.052792,94734.0,94733.0,0.003]
[1736364240490,0.052792,94734.0,94733.0,0.052793]
[1736364241087,0.3722,94739.0,94732.0,0.01092423]
[1736364241288,0.424989,94739.0,94728.0,0.3608]
[1736364241494,0.052795,94729.0,94728.0,0.413595]
[1736364242292,0.052795,94729.0,94727.0,0.01095259]
[1736364242293,0.05279,94738.0,94732.0,0.001]
[1736364242600,0.052793,94732.0,94716.0,0.06370879]
[1736364242790,0.052801,94719.0,94717.0,0.052801]
[1736364242993,0.052801,94718.0,94717.0,0.052801]
[1736364243292,0.052802,94717.0,94714.0,0.05438666]
[1736364243488,0.3608,94724.0,94714.0,0.05438666]
[1736364243695,0.052803,94716.0,94714.0,0.06518003]
[1736364243884,0.052793,94733.0,94714.0,0.01237703]
[1736364244079,0.0528,94721.0,94717.0,0.003]
[1736364244282,0.0528,94720.0,94719.0,0.0528]
[1736364244489,0.052801,94718.0,94717.0,0.003]
[1736364244679,0.052803,94715.0,94714.0,0.01537703]
[1736364245195,0.052803,94715.0,94714.0,0.06818003]
[1736364245393,0.052799,94722.0,94721.0,0.052799]
[1736364246187,0.052799,94722.0,94717.0,0.3608]
[1736364246188,0.22009488,94738.0,94717.0,0.3608]
[1736364246495,0.052795,94730.0,94729.0,0.052795]
[1736364246991,0.22009488,94738.0,94721.0,0.001]
[1736364247179,0.3608,94723.0,94721.0,0.004]
[1736364247380,0.052799,94722.0,94721.0,0.004]
[1736364247787,0.052809,94704.0,94703.0,0.052809]
[1736364247982,0.3608,94723.0,94703.0,1.5]
[1736364248186,0.004,94730.0,94729.0,0.052795]
[1736364248384,0.1136562,94738.0,94724.0,0.3608]
[1736364248585,0.1136562,94738.0,94737.0,0.05279]
[1736364248889,0.1136562,94738.0,94737.0,1.55279]
[1736364249288,0.152789,94740.0,94737.0,1.55279]
[1736364249885,0.152789,94740.0,94737.0,0.05279]
[1736364250079,0.1,94740.0,94737.0,0.002]
[1736364250395,0.05279,94738.0,94737.0,0.002]
[1736364250785,0.05279,94738.0,94737.0,0.001]
[1736364250992,0.101,94740.0,94739.0,0.052789]
[1736364251181,0.1,94740.0,94739.0,0.052789]
[1736364252691,0.05279,94737.0,94736.0,0.01117121]
[1736364252993,0.1,94740.0,94739.0,0.052789]
[1736364253688,0.1,94740.0,94739.0,0.053789]
[1736364253890,0.1,94740.0,94739.0,0.054789]
[1736364254297,0.1,94740.0,94739.0,0.053789]
[1736364254499,0.1,94740.0,94739.0,0.054789]
[1736364255990,0.1,94740.0,94739.0,1.554789]
[1736364256690,0.1,94740.0,94739.0,0.054789]
[1736364257186,0.1,94740.0,94739.0,1.554789]
[1736364257392,0.152789,94740.0,94739.0,0.054789]
[1736364257587,0.1,94740.0,94739.0,0.054789]
[1736364260387,0.152789,94740.0,94739.0,0.002]
[1736364260695,0.328689,94740.0,94739.0,0.002]
[1736364262489,0.328689,94740.0,94739.0,0.001]
[1736364264603,0.328689,94740.0,94739.0,0.053789]
[1736364265502,0.328689,94740.0,94739.0,0.001]
[1736364265698,0.052799,94721.0,94720.0,0.00158352]
[1736364266200,0.2759,94740.0,94730.0,0.052794]
[1736364267003,0.052794,94732.0,94731.0,0.052793]
[1736364268699,0.052794,94732.0,94731.0,0.053793]
[1736364269407,0.052794,94732.0,94731.0,0.054793]
[1736364269797,0.052794,94732.0,94731.0,0.053793]
[1736364269999,0.052794,94732.0,94731.0,0.054793]
[1736364271303,0.2759,94740.0,94731.0,0.053793]
[1736364271602,0.1,94740.0,94739.0,0.052789]
[1736364272298,0.099,94740.0,94739.0,1.552789]
[1736364273415,0.12510494,94763.0,94762.0,0.052776]
[1736364273600,0.02510494,94763.0,94762.0,0.413576]
[1736364273904,0.02510494,94772.0,94771.0,0.052771]
[1736364274102,0.07787594,94772.0,94771.0,0.052771]
[1736364274302,0.052774,94767.0,94766.0,0.052773]
[1736364274609,0.07787694,94772.0,94771.0,0.052771]
[1736364275005,0.052772,94772.0,94771.0,0.052771]
[1736364275394,0.052772,94772.0,94763.0,1.51068601]
[1736364275609,0.052775,94766.0,94765.0,0.052775]
[1736364276500,0.052776,94763.0,94762.0,0.001]
[1736364277009,0.186,94765.0,94754.0,0.052781]
[1736364277210,0.1829,94762.0,94754.0,0.052781]
[1736364277412,0.052781,94754.0,94753.0,0.052781]
[1736364278000,0.1829,94762.0,94748.0,0.3608]
[1736364278206,0.1829,94762.0,94715.0,1.5]
[1736364278207,0.052786,94744.0,94729.0,0.3608]
[1736364278506,0.052786,94744.0,94720.0,0.0528]
[1736364278507,0.052792,94735.0,94732.0,0.052793]
[1736364278708,0.052792,94735.0,94734.0,0.052792]
[1736364279510,0.3608,94740.0,94728.0,0.052795]
[1736364279511,0.052794,94731.0,94728.0,0.052795]
[1736364279816,0.052794,94731.0,94730.0,0.052794]
[1736364280815,0.053794,94731.0,94730.0,0.052794]
[1736364282404,0.052794,94731.0,94730.0,0.054794]
[1736364282809,0.052794,94731.0,94730.0,0.002]
[1736364284304,0.1875,94738.0,94730.0,0.002]
[1736364284511,0.052791,94737.0,94736.0,0.05279]
[1736364284906,0.3608,94740.0,94730.0,0.002]
[1736364285109,0.052784,94748.0,94747.0,0.052784]
[1736364285316,0.052782,94752.0,94745.0,0.3608]
[1736364285515,0.052782,94752.0,94751.0,0.052783]
[1736364286209,0.052782,94752.0,94751.0,0.03078299]
[1736364286522,0.054782,94752.0,94751.0,0.03078299]
[1736364287316,0.055782,94752.0,94751.0,0.03078299]
[1736364287605,0.052785,94746.0,94745.0,0.3608]
[1736364288015,0.3608,94746.0,94740.0,0.052788]
[1736364288216,0.052793,94732.0,94731.0,0.18884788]
[1736364288416,0.052793,94732.0,94731.0,0.052794]
[1736364288917,0.052789,94740.0,94725.0,0.24164488]
[1736364289112,0.3608,94738.0,94725.0,0.24164488]
[1736364289307,0.052791,94737.0,94725.0,0.24164488]
[1736364289515,0.052796,94727.0,94725.0,0.24164488]
[1736364289711,0.052796,94727.0,94726.0,0.052797]
[1736364290824,0.053796,94727.0,94726.0,0.055797]
[1736364291022,0.001,94727.0,94726.0,0.055797]
[1736364291729,0.001,94727.0,94726.0,1.555797]
[1736364292621,0.052791,94736.0,94726.0,1.553797]
[1736364292821,0.052791,94736.0,94735.0,0.413592]
[1736364293515,0.052789,94741.0,94739.0,0.052789]
[1736364293918,0.052789,94741.0,94740.0,0.052789]
[1736364295018,0.1819,94749.0,94739.0,0.001]
[1736364295019,0.052789,94740.0,94739.0,0.001]
[1736364296218,0.052789,94740.0,94735.0,0.001]
[1736364296414,0.052793,94733.0,94732.0,0.3608]
[1736364296816,0.052799,94722.0,94721.0,0.052799]
[1736364298215,0.3617,94732.0,94717.0,0.3716464]
[1736364298420,0.052801,94720.0,94719.0,0.0528]
[1736364298820,0.052801,94718.0,94717.0,1.50064]
[1736364299119,0.052801,94718.0,94717.0,0.052802]
[1736364299315,0.052798,94725.0,94724.0,0.052797]
[1736364299716,0.052798,94725.0,94724.0,1.552797]
[1736364299922,0.3608,94735.0,94724.0,1.8608]
[1736364300124,0.052793,94733.0,94732.0,0.052792]
[1736364301227,0.055793,94733.0,94732.0,0.052792]
[1736364301422,0.052797,94725.0,94724.0,1.5]
[1736364301615,0.052798,94724.0,94723.0,0.052798]
[1736364303026,0.052798,94724.0,94723.0,0.053798]
[1736364303822,0.052798,94724.0,94723.0,0.001]
[1736364304021,0.413598,94724.0,94723.0,0.001]
[1736364304328,0.413598,94724.0,94723.0,0.002]
[1736364305222,0.052798,94724.0,94723.0,0.002]
[1736364305522,0.052795,94729.0,94728.0,0.052795]
[1736364305918,0.052795,94729.0,94728.0,1.5]
[1736364306412,0.052798,94724.0,94721.0,0.052799]
[1736364306620,0.16068791,94731.0,94722.0,0.052799]
[1736364306823,0.16068791,94731.0,94728.0,0.001]
[1736364307023,0.3608,94735.0,94728.0,0.001]
[1736364307221,0.3608,94733.0,94709.0,0.01248331]
[1736364307423,0.052805,94710.0,94709.0,0.00158366]
[1736364307728,0.052805,94710.0,94709.0,0.052806]
[1736364307923,0.3608,94715.0,94706.0,0.3608]
[1736364308118,0.052798,94724.0,94722.0,0.052798]
[1736364308324,0.052794,94731.0,94723.0,0.052798]
[1736364308523,0.3608,94737.0,94723.0,0.052798]
[1736364308524,0.052797,94725.0,94723.0,0.052798]
[1736364308821,0.0528,94720.0,94718.0,0.052801]
[1736364309221,0.052797,94725.0,94707.0,0.3624]
[1736364309420,0.052798,94724.0,94722.0,0.052799]
[1736364309620,0.16068791,94732.0,94722.0,0.052799]
[1736364309820,0.052798,94724.0,94723.0,0.001]
[1736364310528,0.052794,94731.0,94707.0,0.19320413]
[1736364310529,0.052802,94717.0,94707.0,0.19320413]
[1736364310930,0.052804,94713.0,94712.0,0.052804]
[1736364311627,0.052804,94713.0,94707.0,0.01060413]
[1736364311829,0.052804,94713.0,94706.0,0.3608]
[1736364312328,0.052806,94712.0,94711.0,0.052805]
[1736364313315,0.052807,94707.0,94706.0,0.37338795]
[1736364313521,0.413607,94707.0,94706.0,0.002]
[1736364313730,0.413607,94707.0,94695.0,0.18884788]
[1736364313731,0.052811,94700.0,94695.0,0.18884788]
[1736364313928,0.413613,94696.0,94695.0,0.18884788]
[1736364314119,0.052814,94694.0,94693.0,0.18884788]
[1736364316027,0.052814,94694.0,94691.0,0.052816]
[1736364316028,0.052815,94692.0,94691.0,0.052816]
[1736364316421,0.052815,94692.0,94691.0,0.06375616]
[1736364316618,0.001,94694.0,94691.0,0.01094016]
[1736364316818,0.05549563,95453.0,94692.0,0.3608]
[1736364316819,0.3608,94726.0,94692.0,0.3608]
[1736364317124,0.3608,94737.0,94724.0,0.3608]
[1736364317125,0.00104001,94732.0,94724.0,0.3608]
[1736364317329,0.3608,94737.0,94725.0,0.369]
[1736364317527,0.3608,94737.0,94736.0,0.052791]
[1736364317833,0.25153701,94751.0,94741.0,0.052788]
[1736364318327,0.3608,94748.0,94736.0,0.3608]
[1736364318535,0.052787,94743.0,94736.0,0.3608]
[1736364318729,0.25153701,94749.0,94736.0,0.3608]
[1736364318928,0.3608,94747.0,94730.0,1.5]
[1736364319232,0.052788,94741.0,94730.0,1.60707448]
[1736364319434,0.3608,94747.0,94733.0,0.3608]
[1736364319627,0.3608,94747.0,94736.0,0.001]
[1736364319825,0.052787,94744.0,94736.0,0.001]
[1736364320025,0.3608,94747.0,94736.0,0.001]
[1736364320026,0.052787,94743.0,94736.0,0.001]
[1736364320225,0.052787,94743.0,94742.0,0.052788]
[1736364320728,0.052794,94731.0,94730.0,0.001]
[1736364321323,0.052793,94733.0,94732.0,0.052793]
[1736364321626,0.052794,94731.0,94730.0,0.001]
[1736364322019,0.052787,94743.0,94726.0,0.052796]
[1736364322222,0.37185557,94744.0,94726.0,0.052796]
[1736364322418,0.052796,94727.0,94726.0,0.052796]
[1736364323023,0.37185557,94744.0,94721.0,0.01059586]
[1736364323219,0.052795,94729.0,94726.0,0.001]
[1736364323634,0.001,94731.0,94726.0,0.001]
[1736364323932,0.052796,94728.0,94726.0,0.053796]
[1736364325033,0.052796,94727.0,94726.0,0.053796]
[1736364326031,0.052796,94727.0,94726.0,0.052796]
[1736364326236,0.052796,94727.0,94726.0,0.053796]
[1736364326637,0.052796,94727.0,94726.0,0.052796]
[1736364326825,0.052796,94727.0,94726.0,0.053796]
[1736364327633,0.052796,94727.0,94726.0,0.001]
[1736364328031,0.052787,94743.0,94726.0,0.001]
[1736364328229,0.16059402,94750.0,94726.0,0.001]
[1736364328426,0.413596,94727.0,94726.0,0.001]
[1736364330430,0.052806,94709.0,94708.0,0.3608]
[1736364332438,0.052806,94709.0,94708.0,0.413607]
[1736364332828,0.052806,94709.0,94708.0,0.414607]
[1736364333635,0.67522126,94755.0,94708.0,0.6618]
[1736364333833,0.00104001,94749.0,94737.0,0.41359]
[1736364334043,0.67626127,94755.0,94737.0,0.41359]
[1736364334226,0.67626127,94755.0,94737.0,1.91359]
[1736364334428,0.67522126,94755.0,94745.0,0.052786]
[1736364334637,0.67626127,94755.0,94745.0,0.413586]
[1736364335235,0.052782,94753.0,94751.0,0.052782]
[1736364335442,0.052782,94753.0,94752.0,0.052782]
[1736364335935,0.052782,94753.0,94737.0,0.05339]
[1736364335936,0.001,94738.0,94737.0,0.05339]
[1736364336135,0.001,94738.0,94737.0,0.05279]
[1736364336338,0.001,94738.0,94737.0,1.55279]
[1736364336740,0.3608,94753.0,94737.0,1.55279]
[1736364336939,0.3608,94753.0,94752.0,0.052782]
[1736364337345,0.1794,94771.0,94743.0,0.3608]
[1736364337541,0.16059402,94770.0,94743.0,0.3608]
[1736364337744,0.052773,94769.0,94743.0,0.3608]
[1736364338046,0.16059402,94760.0,94752.0,0.052782]
[1736364338237,0.052785,94748.0,94747.0,0.052785]
[1736364339045,0.052786,94744.0,94743.0,0.3608]
[1736364340343,0.052786,94744.0,94743.0,0.413587]
[1736364340538,0.05279,94738.0,94737.0,0.001]
[1736364340843,0.05279,94738.0,94737.0,0.05379]
[1736364341043,0.052788,94742.0,94741.0,0.052788]
[1736364341238,0.3608,94751.0,94733.0,0.37150707]
[1736364341239,0.05279,94738.0,94736.0,0.052791]
[1736364341836,0.05279,94737.0,94736.0,0.052791]
[1736364343042,0.001,94738.0,94725.0,0.3608]
[1736364343234,0.052797,94729.0,94728.0,0.052795]
[1736364343439,0.052797,94726.0,94725.0,0.3608]
[1736364343636,0.052797,94726.0,94725.0,0.42415578]
[1736364344647,0.052796,94731.0,94730.0,0.052794]
[1736364345536,0.052796,94731.0,94716.0,0.10711423]
[1736364345537,0.3608,94731.0,94710.0,0.10711423]
[1736364345743,0.4136,94719.0,94713.0,0.0006]
[1736364346047,0.3608,94719.0,94690.0,0.01090049]
[1736364346246,0.052813,94697.0,94695.0,0.052813]
[1736364346448,0.3608,94709.0,94695.0,0.052813]
[1736364346646,0.3608,94709.0,94687.0,0.052818]
[1736364346647,0.052812,94699.0,94687.0,0.052818]
[1736364346839,0.3608,94700.0,94688.0,0.052818]
[1736364346840,0.052816,94692.0,94688.0,0.052818]
[1736364347041,0.46791423,94700.0,94685.0,0.18884788]
[1736364347237,0.052811,94701.0,94692.0,0.3608]
[1736364347443,0.052814,94698.0,94697.0,0.052812]
[1736364347640,0.052813,94697.0,94696.0,0.052813]
[1736364348745,0.052813,94696.0,94695.0,0.001]
[1736364349644,0.052813,94696.0,94661.0,0.413632]
[1736364349645,0.37160638,94697.0,94668.0,0.052829]
[1736364349839,0.052824,94677.0,94669.0,0.01057199]
[1736364350044,0.052824,94677.0,94672.0,0.3608]
[1736364350243,0.052824,94677.0,94670.0,0.24167488]
[1736364350651,0.052824,94677.0,94671.0,0.052827]
[1736364351153,0.3608,94680.0,94669.0,0.37137199]
[1736364351344,0.052824,94677.0,94674.0,0.052825]
[1736364351539,0.053824,94677.0,94676.0,0.05540829]
[1736364351857,0.053824,94677.0,94676.0,0.00558429]
[1736364352953,0.053824,94677.0,94676.0,0.00458429]
[1736364353550,0.053824,94677.0,94676.0,0.00158429]
[1736364354146,0.052824,94677.0,94676.0,0.00158429]
[1736364355245,0.053824,94677.0,94676.0,0.00158429]
[1736364355650,0.052832,94662.0,94661.0,0.3608]
[1736364355847,0.052829,94668.0,94662.0,0.052832]
[1736364356054,0.05283,94667.0,94662.0,0.052832]
[1736364356250,0.05283,94667.0,94663.0,1.5]
[1736364356446,0.001,94677.0,94663.0,1.5]
[1736364356647,0.002,94677.0,94675.0,0.052825]
[1736364356848,0.003,94677.0,94675.0,0.052825]
[1736364357248,0.002,94677.0,94675.0,0.052825]
[1736364357756,0.052824,94677.0,94675.0,0.052825]
[1736364357954,0.053824,94677.0,94675.0,0.052825]
[1736364358354,0.053824,94677.0,94675.0,0.06364176]
[1736364358949,0.053824,94677.0,94675.0,0.01081676]
[1736364359151,0.052825,94675.0,94671.0,0.3608]
[1736364359363,0.052826,94674.0,94672.0,0.052827]
[1736364360750,0.052826,94674.0,94673.0,0.052826]
[1736364360956,0.053826,94674.0,94673.0,0.052826]